bitfinex/quotes_BTCUSD_20240918
["timestamp","ask_amount","ask_price","bid_price","bid_amount"]
[1726690893156,1.88642811,59869.0,59868.0,0.51084292]
[1726690893380,1.81270207,59869.0,59868.0,0.51830393]
[1726690893812,1.98642811,59869.0,59868.0,0.51830393]
[1726690893816,1.91470207,59869.0,59868.0,0.51830393]
[1726690894041,2.01100345,59869.0,59868.0,0.51830393]
[1726690894280,2.01100345,59869.0,59868.0,0.51084292]
[1726690894517,2.01100345,59869.0,59868.0,0.56267331]
[1726690894752,1.83730657,59869.0,59868.0,0.56267331]
[1726690894995,1.73900519,59869.0,59868.0,0.57013432]
[1726690896144,1.30494319,59869.0,59868.0,0.57013432]
[1726690896364,1.37877904,59869.0,59868.0,0.57013432]
[1726690896579,1.37877904,59869.0,59868.0,0.56267331]
[1726690897006,1.37877904,59869.0,59868.0,0.57014493]
[1726690898124,1.37877904,59869.0,59868.0,1.49771493]
[1726690898125,0.05493808,59869.0,59868.0,1.49771493]
[1726690898349,0.001821,59869.0,59868.0,0.82957893]
[1726690898573,0.001821,59869.0,59868.0,1.16364693]
[1726690899257,0.000821,59869.0,59868.0,1.15464693]
[1726690899479,0.000821,59869.0,59868.0,0.82757893]
[1726690899480,0.001821,59869.0,59868.0,0.82757893]
[1726690899696,0.001821,59869.0,59868.0,0.82057893]
[1726690899909,0.001821,59869.0,59868.0,1.15464693]
[1726690900143,0.002821,59869.0,59868.0,1.16864693]
[1726690900377,0.002821,59869.0,59868.0,1.15464693]
[1726690900378,0.000821,59869.0,59868.0,1.15464693]
[1726690900592,0.001821,59869.0,59868.0,1.16864693]
[1726690900809,0.000821,59869.0,59868.0,1.15464693]
[1726690901274,0.001821,59869.0,59868.0,1.16864693]
[1726690902230,0.001821,59869.0,59868.0,0.66754493]
[1726690902448,0.91676411,59869.0,59868.0,0.65354493]
[1726690902719,0.000821,59869.0,59868.0,0.66754493]
[1726690902909,0.000821,59869.0,59868.0,1.16864693]
[1726690903135,0.000821,59869.0,59868.0,1.15464693]
[1726690903358,0.000821,59869.0,59868.0,1.16864693]
[1726690903584,0.000821,59869.0,59868.0,1.15464693]
[1726690904046,0.000821,59869.0,59868.0,0.83357893]
[1726690904269,0.000821,59869.0,59868.0,0.82057893]
[1726690904485,0.000821,59869.0,59868.0,0.65354493]
[1726690904695,0.000821,59869.0,59868.0,0.82057893]
[1726690905409,0.501914,59869.0,59868.0,0.65354493]
[1726690905629,0.91676411,59869.0,59868.0,0.66754493]
[1726690905845,0.58270211,59869.0,59868.0,0.66754493]
[1726690906079,0.91676411,59869.0,59868.0,0.66754493]
[1726690906293,0.91676411,59869.0,59868.0,0.65354493]
[1726690906509,0.91676411,59869.0,59868.0,0.66754493]
[1726690906758,0.58270211,59869.0,59868.0,0.66754493]
[1726690906973,0.58270211,59869.0,59868.0,0.65354493]
[1726690907190,0.58270211,59869.0,59868.0,0.66754493]
[1726690907403,0.58270211,59869.0,59868.0,0.65354493]
[1726690907834,0.000821,59869.0,59868.0,0.65354493]
[1726690908102,0.000821,59869.0,59868.0,0.82057893]
[1726690908757,0.167852,59869.0,59868.0,0.66754493]
[1726690908980,0.167852,59869.0,59868.0,0.65354493]
[1726690908981,0.501914,59869.0,59868.0,0.65354493]
[1726690909198,0.000821,59869.0,59868.0,0.66754493]
[1726690909451,0.58270211,59869.0,59868.0,0.66754493]
[1726690909674,1.25082611,59869.0,59868.0,0.57514493]
[1726690910105,1.25082611,59869.0,59868.0,0.56114493]
[1726690910106,0.94297508,59869.0,59868.0,0.56114493]
[1726690910331,0.94297508,59869.0,59868.0,0.57514493]
[1726690910581,0.94297508,59869.0,59868.0,0.56114493]
[1726690910582,0.02703197,59869.0,59868.0,0.56114493]
[1726690911074,0.02703197,59869.0,59868.0,0.72817893]
[1726690911504,0.167023,59872.0,59869.0,0.47296803]
[1726690911728,0.167023,59872.0,59870.0,0.1035222]
[1726690911979,0.167025,59871.0,59870.0,0.11083721]
[1726690912226,0.167023,59872.0,59870.0,0.11083721]
[1726690912483,0.167025,59871.0,59870.0,0.11083721]
[1726690913008,0.501076,59871.0,59870.0,0.11083721]
[1726690913513,0.835127,59871.0,59870.0,0.11083721]
[1726690913772,0.835127,59871.0,59870.0,0.12483721]
[1726690914006,0.835127,59871.0,59870.0,0.014]
[1726690914259,0.501076,59871.0,59870.0,0.02133271]
[1726690914513,0.334043,59873.0,59871.0,0.0976]
[1726690914771,0.501067,59872.0,59871.0,0.0976]
[1726690915029,0.501067,59872.0,59871.0,0.17294459]
[1726690915030,0.167022,59872.0,59871.0,0.17294459]
[1726690915278,0.501067,59872.0,59871.0,0.17294459]
[1726690915992,0.501067,59872.0,59871.0,0.18027697]
[1726690916226,0.501067,59872.0,59871.0,0.19427697]
[1726690916461,0.501067,59872.0,59871.0,0.18027697]
[1726690917452,0.501067,59872.0,59871.0,0.19427697]
[1726690918692,0.501067,59872.0,59871.0,0.18027697]
[1726690918924,0.501067,59872.0,59871.0,0.19427697]
[1726690921036,0.02620992,59885.0,59872.0,0.0844]
[1726690921282,0.02620992,59885.0,59876.0,0.17369688]
[1726690921283,0.41337534,59884.0,59876.0,0.17369688]
[1726690921518,0.166996,59882.0,59878.0,0.167005]
[1726690921757,0.166996,59882.0,59877.0,0.167006]
[1726690921997,0.41337534,59884.0,59877.0,0.167006]
[1726690921998,0.166998,59881.0,59879.0,0.0073241]
[1726690922272,0.167004,59879.0,59875.0,0.167014]
[1726690922513,0.07939334,59884.0,59871.0,0.50699259]
[1726690922514,0.167011,59877.0,59871.0,0.50699359]
[1726690922759,0.07939334,59884.0,59874.0,0.167016]
[1726690922760,0.334003,59880.0,59874.0,0.167016]
[1726690923008,0.167007,59878.0,59877.0,0.006]
[1726690923256,0.167007,59878.0,59875.0,0.08253184]
[1726690923627,0.41337534,59884.0,59875.0,0.08253184]
[1726690923628,0.41337234,59884.0,59875.0,0.08253184]
[1726690923792,0.501034,59876.0,59875.0,0.09653184]
[1726690924042,0.167019,59874.0,59872.0,0.15130879]
[1726690924286,0.167015,59875.0,59872.0,0.31832979]
[1726690924532,0.167009,59877.0,59872.0,0.15130879]
[1726690924781,0.24667826,59878.0,59875.0,0.167014]
[1726690925025,0.24667826,59878.0,59874.0,0.167016]
[1726690925267,0.167012,59876.0,59873.0,0.30601758]
[1726690925773,0.167009,59877.0,59873.0,0.30601758]
[1726690926053,0.000821,59881.0,59873.0,0.30601758]
[1726690926054,0.000821,59881.0,59874.0,0.08889754]
[1726690926313,0.167001,59880.0,59877.0,0.167008]
[1726690926554,0.167001,59880.0,59876.0,0.167011]
[1726690926800,0.167004,59879.0,59875.0,0.167014]
[1726690927060,0.167004,59879.0,59876.0,0.25181444]
[1726690928059,0.167004,59879.0,59876.0,0.08480444]
[1726690928306,0.167004,59879.0,59876.0,0.25181544]
[1726690928547,0.167004,59879.0,59877.0,0.014]
[1726690928771,0.167004,59879.0,59876.0,0.25181544]
[1726690928997,0.000821,59881.0,59877.0,0.05858514]
[1726690929217,0.000821,59881.0,59880.0,0.167]
[1726690929445,0.000821,59881.0,59880.0,0.501001]
[1726690929696,0.000821,59881.0,59880.0,0.835002]
[1726690930047,0.000821,59881.0,59880.0,0.934502]
[1726690930243,0.000821,59881.0,59880.0,1.25382107]
[1726690930635,0.000821,59881.0,59880.0,1.26103004]
[1726690931051,0.000821,59881.0,59880.0,1.59503104]
[1726690931280,0.000821,59881.0,59880.0,1.28403004]
[1726690931489,0.000821,59881.0,59880.0,1.78108471]
[1726690931701,0.000821,59891.0,59890.0,0.166972]
[1726690931919,0.25049891,59899.0,59898.0,0.83475]
[1726690932129,0.25049891,59899.0,59898.0,1.43754688]
[1726690932341,0.000821,59906.0,59898.0,1.43754688]
[1726690932342,0.000821,59906.0,59905.0,0.500791]
[1726690932565,0.000821,59906.0,59905.0,0.834652]
[1726690932778,0.000821,59906.0,59905.0,0.93548689]
[1726690932979,0.000821,59906.0,59905.0,0.60863715]
[1726690933189,0.000821,59906.0,59905.0,0.94249815]
[1726690933400,0.000821,59906.0,59905.0,0.60863715]
[1726690933608,0.000821,59906.0,59905.0,0.62263715]
[1726690933842,0.000821,59906.0,59905.0,0.95649815]
[1726690934059,0.000821,59906.0,59905.0,1.40355915]
[1726690934277,0.000821,59906.0,59905.0,1.53654915]
[1726690934693,0.000821,59906.0,59905.0,1.69960282]
[1726690934925,0.00455828,59913.0,59912.0,0.857555]
[1726690935174,0.00455828,59913.0,59912.0,1.55032938]
[1726690935418,0.00455828,59913.0,59912.0,1.22329919]
[1726690936302,0.00455828,59913.0,59912.0,0.88947719]
[1726690936534,0.00455828,59913.0,59912.0,0.19204731]
[1726690936742,0.00455828,59913.0,59912.0,0.10629181]
[1726690936951,0.00455828,59913.0,59912.0,0.12029181]
[1726690937368,0.00455828,59913.0,59912.0,0.28720281]
[1726690938443,0.00455828,59913.0,59912.0,0.12029181]
[1726690938655,0.00455828,59913.0,59912.0,0.27320281]
[1726690938950,0.00455828,59913.0,59912.0,0.36527618]
[1726690939127,0.00455828,59913.0,59912.0,0.35127618]
[1726690939376,0.00455828,59913.0,59912.0,0.85879506]
[1726690939611,0.00455828,59913.0,59912.0,0.36527618]
[1726690940040,0.00455828,59913.0,59912.0,0.69909818]
[1726690940286,0.00455828,59913.0,59912.0,0.36527618]
[1726690940528,0.00455828,59913.0,59912.0,0.69909818]
[1726690940746,0.00455828,59913.0,59912.0,0.36527618]
[1726690941211,0.00455828,59913.0,59912.0,0.18436518]
[1726690941418,0.33837528,59913.0,59912.0,0.02079181]
[1726690941646,0.83910028,59913.0,59912.0,0.014]
[1726690941867,0.50528328,59913.0,59912.0,0.014]
[1726690942094,0.333822,59912.0,59907.0,0.166924]
[1726690942325,0.333822,59912.0,59908.0,0.08990068]
[1726690942555,0.333822,59912.0,59908.0,0.09669249]
[1726690942818,0.00455828,59913.0,59908.0,0.09669249]
[1726690943041,0.00455828,59913.0,59912.0,0.014]
[1726690943283,0.00455828,59913.0,59912.0,0.72249913]
[1726690943506,0.00455828,59913.0,59912.0,0.82289094]
[1726690943710,0.00455828,59913.0,59912.0,0.31537206]
[1726690944149,0.00455828,59913.0,59912.0,0.96901606]
[1726690945009,0.00555828,59913.0,59912.0,0.98301606]
[1726690945484,0.00555828,59913.0,59912.0,0.31537206]
[1726690945707,0.00555828,59913.0,59912.0,0.98301606]
[1726690946766,0.00555828,59913.0,59912.0,0.31537206]
[1726690947034,0.00555828,59913.0,59912.0,0.64919406]
[1726690947245,0.00455828,59913.0,59912.0,0.63519406]
[1726690947450,0.00455828,59913.0,59912.0,0.64919406]
[1726690947635,0.00555828,59913.0,59912.0,0.64919406]
[1726690947843,0.00555828,59913.0,59912.0,0.63519406]
[1726690948049,0.00655828,59913.0,59912.0,0.64919406]
[1726690948261,0.00555828,59913.0,59912.0,0.63519406]
[1726690948746,0.00655828,59913.0,59912.0,0.64919406]
[1726690948955,0.00455828,59913.0,59912.0,0.63519406]
[1726690949430,0.00455828,59913.0,59912.0,0.30137206]
[1726690950478,0.00555828,59913.0,59912.0,0.31537206]
[1726690950685,0.00455828,59913.0,59912.0,0.30137206]
[1726690951131,0.00555828,59913.0,59912.0,0.31537206]
[1726690951349,0.0047602,59931.0,59912.0,0.36251473]
[1726690951566,0.0047602,59931.0,59930.0,0.523583]
[1726690951793,0.0047602,59931.0,59930.0,1.06449188]
[1726690952025,0.0047602,59931.0,59930.0,1.07112047]
[1726690952248,0.0047602,59931.0,59930.0,1.23001482]
[1726690952495,0.0047602,59931.0,59930.0,1.56373682]
[1726690952713,0.0047602,59931.0,59930.0,1.23001482]
[1726690953190,0.0047602,59931.0,59930.0,1.56373682]
[1726690953431,0.0047602,59931.0,59930.0,1.23001482]
[1726690953661,0.0047602,59931.0,59930.0,1.24401482]
[1726690953906,0.0047602,59931.0,59930.0,1.23001482]
[1726690954126,0.0047602,59931.0,59930.0,1.28125536]
[1726690954426,0.0047602,59931.0,59930.0,1.29525536]
[1726690954647,0.0047602,59931.0,59930.0,1.62897736]
[1726690955804,0.0047602,59931.0,59930.0,1.99269936]
[1726690956066,0.0047602,59931.0,59930.0,3.25489936]
[1726690956326,0.0047602,59931.0,59930.0,2.89117736]
[1726690956576,0.0047602,59931.0,59930.0,2.83993682]
[1726690957249,0.0047602,59931.0,59930.0,2.89117736]
[1726690957477,0.0047602,59931.0,59930.0,2.83993682]
[1726690957938,0.0047602,59931.0,59930.0,2.89117736]
[1726690958423,0.0047602,59931.0,59930.0,2.83993682]
[1726690958648,0.000821,59941.0,59931.0,0.223348]
[1726690958899,0.000821,59941.0,59931.0,0.49806505]
[1726690959157,0.000821,59941.0,59931.0,0.60444782]
[1726690959397,0.000821,59941.0,59931.0,0.65568836]
[1726690959647,0.000821,59941.0,59931.0,0.60444782]
[1726690959870,0.000821,59941.0,59931.0,0.60644782]
[1726690960351,0.000821,59941.0,59931.0,2.12248836]
[1726690960585,0.000821,59941.0,59932.0,0.379855]
[1726690960827,0.000821,59941.0,59932.0,0.73060914]
[1726690961079,0.000821,59941.0,59932.0,0.73690237]
[1726690962069,0.000821,59941.0,59932.0,1.73803537]
[1726690962286,0.000821,59941.0,59938.0,1.197873]
[1726690962520,0.000821,59941.0,59938.0,2.24487776]
[1726690962807,0.000821,59941.0,59938.0,2.2961183]
[1726690963054,0.000821,59941.0,59940.0,1.220834]
[1726690963303,0.000821,59941.0,59940.0,1.91304467]
[1726690963540,0.0039392,59949.0,59948.0,1.49786388]
[1726690963766,0.0039392,59949.0,59948.0,2.23972594]
[1726690964009,0.0039392,59949.0,59948.0,2.29721165]
[1726690964518,0.0039392,59949.0,59948.0,2.27597111]
[1726690965506,0.0039392,59949.0,59948.0,3.59817111]
[1726690966009,0.0039392,59949.0,59948.0,3.69967111]
[1726690966266,0.0039392,59949.0,59948.0,3.70750311]
[1726690967010,0.0039392,59949.0,59948.0,3.7569955]
[1726690967477,0.0039392,59949.0,59948.0,3.67550311]
[1726690967723,0.0039392,59949.0,59948.0,3.70750311]
[1726690968730,0.333466,59977.0,59962.0,0.34046888]
[1726690968945,0.167562,59973.0,59962.0,0.39751577]
[1726690969164,0.00082,59973.0,59962.0,0.40350577]
[1726690969406,0.25028992,59969.0,59962.0,0.89689689]
[1726690969689,0.501129,59963.0,59962.0,0.04003689]
[1726690969917,0.501129,59963.0,59962.0,0.00599]
[1726690969918,1.32490269,59963.0,59962.0,0.00599]
[1726690970148,1.32490269,59963.0,59935.0,1.31169239]
[1726690970149,0.1,59962.0,59939.0,0.03349]
[1726690970382,0.83393,59957.0,59956.0,0.25028992]
[1726690970616,0.166829,59942.0,59940.0,0.05847541]
[1726690970860,0.40210215,59957.0,59939.0,0.03349]
[1726690971090,0.166824,59944.0,59941.0,0.00472779]
[1726690971328,0.166824,59944.0,59939.0,0.03349]
[1726690971551,0.166818,59946.0,59940.0,0.17155979]
[1726690971739,0.166819,59945.0,59940.0,0.17156079]
[1726690971981,0.166823,59944.0,59941.0,0.0573618]
[1726690972227,0.333637,59946.0,59941.0,0.0573618]
[1726690972444,0.000821,59957.0,59941.0,0.0573618]
[1726690972679,0.000821,59957.0,59942.0,0.00806399]
[1726690972680,0.001,59946.0,59942.0,0.00806399]
[1726690972932,0.001,59946.0,59945.0,0.523458]
[1726690973144,0.166803,59951.0,59946.0,0.166814]
[1726690973365,0.166803,59951.0,59945.0,0.166819]
[1726690973582,0.166803,59951.0,59943.0,0.37830708]
[1726690973583,0.166821,59945.0,59943.0,0.04465808]
[1726690973797,0.333617,59949.0,59943.0,0.04465808]
[1726690974021,0.167817,59946.0,59943.0,0.04465808]
[1726690974943,0.83411,59944.0,59943.0,0.04465808]
[1726690975203,0.333634,59946.0,59934.0,0.03349]
[1726690975438,0.333674,59939.0,59935.0,0.023]
[1726690975671,0.500524,59937.0,59936.0,0.0223342]
[1726690975928,0.500524,59937.0,59930.0,0.169819]
[1726690975929,0.166846,59936.0,59932.0,0.200345]
[1726690976166,0.166846,59936.0,59934.0,0.03349]
[1726690976897,0.166842,59937.0,59934.0,0.03349]
[1726690977156,0.834208,59937.0,59936.0,0.03349]
[1726690977940,0.166839,59938.0,59936.0,0.03349]
[1726690978189,0.333655,59943.0,59937.0,0.03349]
[1726690978438,0.166836,59939.0,59938.0,0.0868932]
[1726690978675,0.500508,59939.0,59938.0,0.03349]
[1726690979160,0.166833,59940.0,59938.0,0.03831306]
[1726690979397,0.166833,59940.0,59939.0,0.05528491]
[1726690980158,0.166833,59940.0,59939.0,0.06010797]
[1726690980623,0.5005,59940.0,59939.0,0.06010797]
[1726690980852,0.5005,59940.0,59939.0,0.00482306]
[1726690981320,0.166833,59940.0,59938.0,0.03349]
[1726690981536,0.001,59940.0,59939.0,0.01896762]
[1726690981765,0.167833,59940.0,59939.0,0.03592986]
[1726690981978,0.167833,59940.0,59939.0,0.0408996]
[1726690982204,0.167833,59940.0,59939.0,0.0268996]
[1726690982473,0.166833,59940.0,59939.0,0.0268996]
[1726690982699,0.167833,59940.0,59939.0,0.00496974]
[1726690982910,0.001,59940.0,59939.0,0.00496974]
[1726690983102,0.001,59940.0,59939.0,0.500508]
[1726690983348,0.001,59940.0,59939.0,0.50547774]
[1726690983790,0.001,59940.0,59939.0,0.17180574]
[1726690984005,0.001,59940.0,59939.0,0.17344774]
[1726690984220,0.001,59940.0,59939.0,0.3007332]
[1726690984439,0.002,59940.0,59939.0,0.6344052]
[1726690984709,0.002,59940.0,59939.0,0.3007332]
[1726690985238,0.002,59940.0,59939.0,1.15746727]
[1726690985472,0.002,59940.0,59939.0,1.48780287]
[1726690986612,0.002,59940.0,59939.0,1.77410287]
[1726690987381,0.002,59940.0,59939.0,3.09979287]
[1726690987646,0.002,59940.0,59939.0,3.06979287]
[1726690988161,0.25025651,59948.0,59947.0,0.166814]
[1726690988393,0.75068951,59948.0,59947.0,0.0166814]
[1726690988607,0.75068951,59948.0,59940.0,0.03349]
[1726690988608,0.16683,59941.0,59940.0,0.03349]
[1726690988831,0.0989,59952.0,59940.0,0.03349]
[1726690988832,0.333629,59947.0,59940.0,0.03349]
[1726690989064,0.16682,59945.0,59941.0,0.14246175]
[1726690989282,0.333629,59947.0,59941.0,0.14246175]
[1726690989283,0.166823,59944.0,59941.0,0.17595175]
[1726690989552,0.166823,59944.0,59942.0,0.00499613]
[1726690989793,0.166823,59944.0,59943.0,0.16116229]
[1726690990073,0.001,59948.0,59943.0,0.16116229]
[1726690990291,0.166817,59946.0,59943.0,0.16615921]
[1726690990501,0.166817,59946.0,59943.0,0.33298321]
[1726690990933,0.166817,59946.0,59943.0,0.16615921]
[1726690991149,0.166822,59945.0,59944.0,0.05473062]
[1726690991620,0.166822,59945.0,59944.0,0.05974167]
[1726690992062,0.166822,59945.0,59944.0,0.00501105]
[1726690992285,0.500461,59945.0,59944.0,0.00501105]
[1726690992526,0.166822,59945.0,59944.0,0.00501105]
[1726690992743,0.00771197,59960.0,59944.0,0.014]
[1726690992965,0.166814,59947.0,59944.0,0.18583383]
[1726690993187,0.166816,59946.0,59945.0,0.05194898]
[1726690993649,0.166819,59945.0,59944.0,0.014]
[1726690993921,0.166819,59946.0,59942.0,0.166827]
[1726690994182,0.166819,59945.0,59942.0,0.166827]
[1726690994424,0.166819,59945.0,59944.0,0.014]
[1726690994941,0.166825,59943.0,59940.0,0.023]
[1726690995190,0.166826,59943.0,59939.0,0.201966]
[1726690995436,0.333656,59942.0,59939.0,0.035132]
[1726690995701,0.166832,59941.0,59939.0,0.035132]
[1726690996065,0.166832,59941.0,59939.0,0.001642]
[1726690996066,2.16876821,59940.0,59939.0,0.001642]
[1726690996067,1.167834,59940.0,59939.0,0.001642]
[1726690996277,1.57239635,59940.0,59939.0,0.001642]
[1726690996517,1.74586101,59940.0,59939.0,0.001642]
[1726690996762,0.5005,59940.0,59939.0,0.001642]
[1726690997000,0.33365,59943.0,59939.0,0.001642]
[1726690997267,0.25025234,59953.0,59939.0,0.001642]
[1726690997268,0.25793571,59953.0,59939.0,0.001642]
[1726690997512,0.33366,59942.0,59939.0,0.02615267]
[1726690997758,0.06999086,59952.0,59939.0,0.01915267]
[1726690998001,0.166826,59943.0,59939.0,0.18598667]
[1726690998237,0.166826,59943.0,59939.0,0.19198667]
[1726690998471,0.166826,59943.0,59939.0,0.18598767]
[1726690998713,0.166826,59943.0,59940.0,0.05196717]
[1726690999173,0.166827,59942.0,59940.0,0.05196717]
[1726690999649,0.166822,59944.0,59940.0,0.05196717]
[1726690999903,0.166822,59944.0,59940.0,0.21880017]
[1726691000804,0.333628,59947.0,59940.0,0.05196717]
[1726691001041,0.16682,59945.0,59941.0,0.20730808]
[1726691001785,0.16682,59945.0,59942.0,0.166827]
[1726691002260,0.16682,59945.0,59941.0,0.04047908]
[1726691002498,0.333621,59949.0,59941.0,0.37413708]
[1726691002734,0.44532515,59966.0,59946.0,0.17346466]
[1726691002735,0.000821,59957.0,59946.0,0.17346466]
[1726691002977,1.00099265,59952.0,59951.0,0.166802]
[1726691003208,0.000821,59957.0,59951.0,0.166802]
[1726691003209,0.000821,59957.0,59951.0,0.333605]
[1726691003433,0.000821,59957.0,59956.0,0.500365]
[1726691003692,0.167607,59957.0,59956.0,0.05037006]
[1726691003922,0.167607,59957.0,59951.0,0.17346466]
[1726691003923,0.000821,59957.0,59955.0,0.166789]
[1726691004625,0.000821,59957.0,59951.0,0.17346466]
[1726691004626,0.000821,59957.0,59956.0,0.166788]
[1726691004840,0.000821,59957.0,59956.0,0.841942]
[1726691005057,0.000821,59957.0,59956.0,0.97482886]
[1726691005308,0.000821,59957.0,59956.0,1.30840586]
[1726691005526,0.000821,59957.0,59956.0,1.40840586]
[1726691005752,0.000821,59957.0,59956.0,1.41342503]
[1726691005971,0.000821,59957.0,59956.0,1.5864787]
[1726691006204,0.000821,59957.0,59956.0,1.5764787]
[1726691006681,0.000821,59957.0,59956.0,1.41342503]
[1726691007391,0.000821,59957.0,59956.0,1.42742503]
[1726691007635,0.000821,59957.0,59956.0,0.13690603]
[1726691007911,0.167607,59957.0,59956.0,0.01901917]
[1726691008126,0.501179,59957.0,59956.0,0.01901917]
[1726691008354,0.501179,59957.0,59956.0,0.014]
[1726691008577,0.167607,59957.0,59956.0,0.01879198]
[1726691008827,0.000821,59957.0,59956.0,0.54106478]
[1726691009069,0.000821,59957.0,59956.0,0.89764178]
[1726691009309,0.000821,59957.0,59956.0,1.39427245]
[1726691009536,0.000821,59957.0,59956.0,1.48767245]
[1726691010840,0.000821,59957.0,59956.0,1.32461878]
[1726691011101,0.24968738,59964.0,59963.0,0.166769]
[1726691011327,0.000821,59966.0,59965.0,0.166763]
[1726691011770,0.000821,59966.0,59965.0,0.333527]
[1726691011990,0.000821,59966.0,59965.0,0.833817]
[1726691012201,0.000821,59966.0,59965.0,0.83864282]
[1726691012414,0.000821,59966.0,59965.0,0.9558615]
[1726691012630,0.000821,59966.0,59965.0,0.9638615]
[1726691013054,0.000821,59966.0,59965.0,1.4435785]
[1726691013520,0.000821,59966.0,59965.0,1.5431785]
[1726691014462,0.000821,59966.0,59965.0,1.5351785]
[1726691014674,0.000821,59966.0,59965.0,2.04575917]
[1726691014895,0.000821,59966.0,59965.0,2.03175917]
[1726691015105,0.000821,59966.0,59965.0,2.04575917]
[1726691015535,0.000821,59966.0,59965.0,2.03175917]
[1726691015780,0.000821,59966.0,59965.0,3.42395917]
[1726691016212,0.000821,59966.0,59965.0,3.75748617]
[1726691016435,0.000821,59966.0,59965.0,3.83148617]
[1726691016654,0.0039392,59967.0,59966.0,2.080861]
[1726691016874,0.0039392,59967.0,59966.0,2.55460323]
[1726691017090,0.0039392,59967.0,59966.0,2.55923283]
[1726691017337,0.0039392,59967.0,59966.0,2.83588613]
[1726691017595,0.0039392,59967.0,59966.0,2.51142985]
[1726691017854,0.0039392,59967.0,59966.0,2.12990785]
[1726691018095,0.0039392,59967.0,59966.0,2.09990785]
[1726691018564,0.0039392,59967.0,59966.0,2.18990785]
[1726691019546,0.0047602,59967.0,59966.0,2.18990785]
[1726691020265,0.0047602,59967.0,59966.0,2.19190785]
[1726691020987,0.0047602,59967.0,59966.0,3.45410785]
[1726691024324,0.0047602,59967.0,59966.0,3.45210785]
[1726691028114,0.0047602,59967.0,59966.0,1.97768818]
[1726691028333,0.0047602,59967.0,59966.0,1.63953658]
[1726691028564,0.0047602,59967.0,59966.0,1.97305858]
[1726691028818,0.0047602,59967.0,59966.0,2.30658058]
[1726691029080,0.0047602,59967.0,59966.0,1.47277558]
[1726691029344,0.0047602,59967.0,59966.0,1.60604658]
[1726691030050,0.0047602,59967.0,59966.0,1.94856858]
[1726691030297,0.0047602,59967.0,59966.0,1.96256858]
[1726691030532,0.0047602,59967.0,59966.0,1.94856858]
[1726691030756,0.0047602,59967.0,59966.0,2.28209058]
[1726691030986,0.0047602,59967.0,59966.0,2.29609058]
[1726691031753,0.0047602,59967.0,59966.0,1.96256858]
[1726691032274,0.0047602,59967.0,59966.0,1.96421058]
[1726691032786,0.0047602,59967.0,59966.0,0.70201058]
[1726691032997,0.0047602,59967.0,59966.0,0.34548858]
[1726691033236,0.0047602,59967.0,59966.0,0.182403]
[1726691034077,0.0047602,59967.0,59966.0,0.168403]
[1726691034537,0.1715182,59967.0,59966.0,0.015642]
[1726691034745,0.0047602,59967.0,59966.0,0.015642]
[1726691035608,0.0047602,59967.0,59966.0,0.182403]
[1726691035825,0.0047602,59967.0,59966.0,0.43428045]
[1726691036045,0.0047602,59967.0,59966.0,0.76780245]
[1726691036264,0.0047602,59967.0,59966.0,1.42084645]
[1726691036486,0.0047602,59967.0,59966.0,1.59790012]
[1726691036926,0.0047602,59967.0,59966.0,2.03142212]
[1726691037177,0.0047602,59967.0,59966.0,1.71190012]
[1726691037391,0.0047602,59967.0,59966.0,1.69790012]
[1726691038261,0.0047602,59967.0,59966.0,2.03142212]
[1726691038503,0.0047602,59967.0,59966.0,2.12292212]
[1726691041573,0.0047602,59967.0,59966.0,1.26138179]
[1726691042017,0.0047602,59967.0,59966.0,1.69790012]
[1726691042237,0.0047602,59967.0,59966.0,1.79080012]
[1726691042461,0.0047602,59967.0,59966.0,1.88280012]
[1726691042643,0.0047602,59967.0,59966.0,1.93251938]
[1726691042885,0.0047602,59967.0,59966.0,1.88280012]
[1726691043319,0.0047602,59967.0,59966.0,2.54984412]
[1726691043561,0.0047602,59967.0,59966.0,2.55107497]
[1726691043806,0.0047602,59967.0,59966.0,2.56507497]
[1726691044052,0.0047602,59967.0,59966.0,2.5976065]
[1726691044264,0.0047602,59967.0,59966.0,2.56507657]
[1726691044488,0.0047602,59967.0,59966.0,2.62445302]
[1726691044706,0.0047602,59967.0,59966.0,3.81965819]
[1726691044905,0.0047602,59967.0,59966.0,3.89223708]
[1726691045217,0.0047602,59967.0,59966.0,3.81765819]
[1726691045453,0.0047602,59967.0,59966.0,3.89423708]
[1726691045663,0.0047602,59967.0,59966.0,4.0825815]
[1726691045911,0.0047602,59967.0,59966.0,4.15727841]
[1726691046142,0.0047602,59967.0,59966.0,3.91163057]
[1726691046380,0.0047602,59967.0,59966.0,4.06865302]
[1726691046625,0.0047602,59967.0,59966.0,4.18009154]
[1726691046856,0.0047602,59967.0,59966.0,4.16809154]
[1726691047104,0.0047602,59967.0,59966.0,4.16925302]
[1726691047365,0.0047602,59967.0,59966.0,4.26888922]
[1726691047577,0.00082,59973.0,59966.0,4.16925302]
[1726691047578,2e-07,59973.0,59966.0,4.16925302]
[1726691047784,0.25018138,59984.0,59978.0,0.355217]
[1726691048000,1.00429766,59985.0,59978.0,1.85522516]
[1726691048218,1.00429766,59985.0,59978.0,1.98630862]
[1726691048461,1.00429766,59985.0,59978.0,1.62550258]
[1726691048698,1.00429766,59985.0,59978.0,0.32981258]
[1726691048908,0.0039392,59985.0,59978.0,0.34019166]
[1726691049130,0.0039392,59985.0,59978.0,0.60324533]
[1726691049588,0.0039392,59985.0,59978.0,0.63673533]
[1726691049816,0.0039392,59985.0,59978.0,0.65973533]
[1726691050270,0.0039392,59985.0,59978.0,1.00719033]
[1726691050509,0.0039392,59985.0,59978.0,1.77481936]
[1726691050721,0.0039392,59985.0,59978.0,2.20267436]
[1726691050944,0.0039392,59985.0,59978.0,2.25454826]
[1726691051154,0.0039392,59985.0,59978.0,2.20467436]
[1726691051585,0.0039392,59985.0,59978.0,2.45347618]
[1726691051799,0.0039392,59985.0,59978.0,2.55324334]
[1726691052009,0.0039392,59985.0,59978.0,2.57816093]
[1726691052230,0.0039392,59985.0,59978.0,2.60816093]
[1726691052531,0.0039392,59985.0,59978.0,2.92761593]
[1726691052721,0.0039392,59985.0,59978.0,2.83416709]
[1726691053168,0.0039392,59985.0,59978.0,2.89416709]
[1726691053608,0.0039392,59985.0,59978.0,2.88016709]
[1726691053825,0.0039392,59985.0,59978.0,2.89416709]
[1726691054050,0.0039392,59985.0,59978.0,2.01785709]
[1726691054273,0.0039392,59985.0,59978.0,1.63892236]
[1726691054493,0.0039392,59985.0,59978.0,0.98184603]
[1726691055398,0.001021,59979.0,59978.0,0.98184603]